Department family,Entity,Date,Expense type,Expense area,Supplier,Transaction number,Amount
Department of Health,Leicestershire Partnership NHS Trust,01/08/22,CHP Estates Management,Merlyn Vaz Centre (CHP),COMM HLTH PARTNERSHIPS LTD,0060252290,32051.45
Department of Health,Leicestershire Partnership NHS Trust,01/08/22,Crs_NHS_LT1y -Resus Inventory Supplied.,Balance Sheet Collection,SUPPLY CHAIN CO LTD,1123089400,27736.41
Department of Health,Leicestershire Partnership NHS Trust,01/08/22,CHP Estates Management,Merlyn Vaz Centre (CHP),COMM HLTH PARTNERSHIPS LTD,0060252901,30202.89
Department of Health,Leicestershire Partnership NHS Trust,01/08/22,GP IT Expenditure,Area Team,SOFTCAT PLC,INVUK518391,150237.21
Department of Health,Leicestershire Partnership NHS Trust,01/08/22,Senior Manager - Band 8D,Business Development,NORTHAMPTONSHIRE HC NHS FT (RP1),5152581,18422.70
Department of Health,Leicestershire Partnership NHS Trust,01/08/22,Admin & Clerical - Band 5,Chief Executives Office,NORTHAMPTONSHIRE HC NHS FT (RP1),5152581,1090.52
Department of Health,Leicestershire Partnership NHS Trust,01/08/22,Admin & Clerical - Band 6,Chief Executives Office,NORTHAMPTONSHIRE HC NHS FT (RP1),5152581,2096.48
Department of Health,Leicestershire Partnership NHS Trust,01/08/22,CHIEF EXECUTIVE'S REMUNERATION,Chief Executives Office,NORTHAMPTONSHIRE HC NHS FT (RP1),5152581,10879.36
Department of Health,Leicestershire Partnership NHS Trust,01/08/22,DIRECTOR,Chief Executives Office,NORTHAMPTONSHIRE HC NHS FT (RP1),5152581,20172.18
Department of Health,Leicestershire Partnership NHS Trust,01/08/22,Payroll Deductions -Salary Sacrifice Cars Scheme,Balance Sheet Collection,TUSKER,63302,32949.66
Department of Health,Leicestershire Partnership NHS Trust,02/08/22,Rent,"Syston Health Centre (New Building) (P127, LPT)",PHIP (5) LIMITED,LINV535619,37500.00
Department of Health,Leicestershire Partnership NHS Trust,02/08/22,Computer Hardware,Director of Estates & Facilities Mgmt Team,DELL COMPUTERS,7402836362,41700.00
Department of Health,Leicestershire Partnership NHS Trust,02/08/22,Unitary Payment,"The Agnes Unit (AKA Assessment and Treatment Centre) (P85, LPT)",ARDEN PARTNERSHIP (LEICESTER),SI0100,131224.36
Department of Health,Leicestershire Partnership NHS Trust,02/08/22,Healthcare Services / Recharges from Non-NHS Bodies,Adult Eating Disorder Collaborative,PRIORY GROUP,301JUL22LECAED,82446.34
Department of Health,Leicestershire Partnership NHS Trust,02/08/22,External Data Processing / Storage,Records & information Governance,L&R STORAGE,4010124,34338.64
Department of Health,Leicestershire Partnership NHS Trust,02/08/22,Nurse - Band 6 -Agency,AMH - Central Access Point,HCL NURSING,HNSI0001102,1553.98
Department of Health,Leicestershire Partnership NHS Trust,02/08/22,Nurse - Band 6 -Agency,Adult County- East Leicester CMHT,HCL NURSING,HNSI0001102,3235.60
Department of Health,Leicestershire Partnership NHS Trust,02/08/22,NURSE - BAND 2 - AGENCY,Agnes Unit,HCL NURSING,HNSI0001102,20529.04
Department of Health,Leicestershire Partnership NHS Trust,02/08/22,NURSE - BAND 5 - AGENCY,Agnes Unit,HCL NURSING,HNSI0001102,20771.94
Department of Health,Leicestershire Partnership NHS Trust,02/08/22,NURSE - BAND 2 - AGENCY,Ashby Ward (Bradgate Unit),HCL NURSING,HNSI0001102,7353.52
Department of Health,Leicestershire Partnership NHS Trust,02/08/22,NURSE - BAND 5 - AGENCY,Ashby Ward (Bradgate Unit),HCL NURSING,HNSI0001102,13102.44
Department of Health,Leicestershire Partnership NHS Trust,02/08/22,NURSE - BAND 2 - AGENCY,Beaumont Ward - Bradgate Unit,HCL NURSING,HNSI0001102,9526.41
Department of Health,Leicestershire Partnership NHS Trust,02/08/22,NURSE - BAND 5 - AGENCY,Beaumont Ward - Bradgate Unit,HCL NURSING,HNSI0001102,12068.63
Department of Health,Leicestershire Partnership NHS Trust,02/08/22,NURSE - BAND 2 - AGENCY,Belvoir Psychiatric Intensive Care Unit,HCL NURSING,HNSI0001102,4015.88
Department of Health,Leicestershire Partnership NHS Trust,02/08/22,NURSE - BAND 5 - AGENCY,Belvoir Psychiatric Intensive Care Unit,HCL NURSING,HNSI0001102,4141.32
Department of Health,Leicestershire Partnership NHS Trust,02/08/22,NURSE - BAND 2 - AGENCY,Bosworth Ward - Bradgate Unit,HCL NURSING,HNSI0001102,9885.90
Department of Health,Leicestershire Partnership NHS Trust,02/08/22,NURSE - BAND 5 - AGENCY,Bosworth Ward - Bradgate Unit,HCL NURSING,HNSI0001102,11936.30
Department of Health,Leicestershire Partnership NHS Trust,02/08/22,NURSE - BAND 2 - AGENCY,Cedar (Willows),HCL NURSING,HNSI0001102,3034.03
Department of Health,Leicestershire Partnership NHS Trust,02/08/22,NURSE - BAND 5 - AGENCY,Cedar (Willows),HCL NURSING,HNSI0001102,3983.98
Department of Health,Leicestershire Partnership NHS Trust,02/08/22,Nurse - Band 6 -Agency,City West CMHT MHSOP,HCL NURSING,HNSI0001102,2112.00
Department of Health,Leicestershire Partnership NHS Trust,02/08/22,NURSE - BAND 2 - AGENCY,Coleman Ward,HCL NURSING,HNSI0001102,4511.33
Department of Health,Leicestershire Partnership NHS Trust,02/08/22,NURSE - BAND 5 - AGENCY,Coleman Ward,HCL NURSING,HNSI0001102,9301.91
Department of Health,Leicestershire Partnership NHS Trust,02/08/22,NURSE - BAND 5 - AGENCY,Crisis Resolution,HCL NURSING,HNSI0001102,2680.64
Department of Health,Leicestershire Partnership NHS Trust,02/08/22,Nurse - Band 6 -Agency,Crisis Resolution,HCL NURSING,HNSI0001102,120.00
Department of Health,Leicestershire Partnership NHS Trust,02/08/22,NURSE - BAND 2 - AGENCY,Griffin Ward (HPC),HCL NURSING,HNSI0001102,5361.12
Department of Health,Leicestershire Partnership NHS Trust,02/08/22,NURSE - BAND 5 - AGENCY,Griffin Ward (HPC),HCL NURSING,HNSI0001102,3016.16
Department of Health,Leicestershire Partnership NHS Trust,02/08/22,NURSE - BAND 2 - AGENCY,Gwendolen Ward,HCL NURSING,HNSI0001102,3835.81
Department of Health,Leicestershire Partnership NHS Trust,02/08/22,NURSE - BAND 5 - AGENCY,Gwendolen Ward,HCL NURSING,HNSI0001102,1680.79
Department of Health,Leicestershire Partnership NHS Trust,02/08/22,NURSE - BAND 2 - AGENCY,Heather Ward,HCL NURSING,HNSI0001102,1054.43
Department of Health,Leicestershire Partnership NHS Trust,02/08/22,NURSE - BAND 5 - AGENCY,Heather Ward,HCL NURSING,HNSI0001102,8620.50
Department of Health,Leicestershire Partnership NHS Trust,02/08/22,NURSE - BAND 2 - AGENCY,Kirby Ward,HCL NURSING,HNSI0001102,6842.30
Department of Health,Leicestershire Partnership NHS Trust,02/08/22,NURSE - BAND 5 - AGENCY,Kirby Ward,HCL NURSING,HNSI0001102,1761.48
Department of Health,Leicestershire Partnership NHS Trust,02/08/22,NURSE - BAND 2 - AGENCY,Maple Ward,HCL NURSING,HNSI0001102,3191.28
Department of Health,Leicestershire Partnership NHS Trust,02/08/22,NURSE - BAND 5 - AGENCY,Maple Ward,HCL NURSING,HNSI0001102,2084.80
Department of Health,Leicestershire Partnership NHS Trust,02/08/22,Nurse - Band 6 -Agency,Mental Health Liaison Team,HCL NURSING,HNSI0001102,1880.22
Department of Health,Leicestershire Partnership NHS Trust,02/08/22,NURSE - BAND 2 - AGENCY,Mill Lodge,HCL NURSING,HNSI0001102,7633.67
Department of Health,Leicestershire Partnership NHS Trust,02/08/22,NURSE - BAND 5 - AGENCY,Mill Lodge,HCL NURSING,HNSI0001102,6916.19
Department of Health,Leicestershire Partnership NHS Trust,02/08/22,NURSE - BAND 2 - AGENCY,Phoenix Ward (HPC),HCL NURSING,HNSI0001102,8722.19
Department of Health,Leicestershire Partnership NHS Trust,02/08/22,NURSE - BAND 5 - AGENCY,Phoenix Ward (HPC),HCL NURSING,HNSI0001102,4116.47
Department of Health,Leicestershire Partnership NHS Trust,02/08/22,NURSE - BAND 2 - AGENCY,Place Of Safety Assessment Unit,HCL NURSING,HNSI0001102,1451.72
Department of Health,Leicestershire Partnership NHS Trust,02/08/22,NURSE - BAND 5 - AGENCY,Place Of Safety Assessment Unit,HCL NURSING,HNSI0001102,4657.24
Department of Health,Leicestershire Partnership NHS Trust,02/08/22,NURSE - BAND 2 - AGENCY,Stewart House,HCL NURSING,HNSI0001102,2921.48
Department of Health,Leicestershire Partnership NHS Trust,02/08/22,NURSE - BAND 5 - AGENCY,Stewart House,HCL NURSING,HNSI0001102,7611.47
Department of Health,Leicestershire Partnership NHS Trust,02/08/22,NURSE - BAND 2 - AGENCY,Sycamore (Willows),HCL NURSING,HNSI0001102,3943.53
Department of Health,Leicestershire Partnership NHS Trust,02/08/22,NURSE - BAND 5 - AGENCY,Sycamore (Willows),HCL NURSING,HNSI0001102,4241.70
Department of Health,Leicestershire Partnership NHS Trust,02/08/22,NURSE - BAND 2 - AGENCY,Thornton Ward - Bradgate Unit,HCL NURSING,HNSI0001102,2425.11
Department of Health,Leicestershire Partnership NHS Trust,02/08/22,NURSE - BAND 5 - AGENCY,Thornton Ward - Bradgate Unit,HCL NURSING,HNSI0001102,1560.13
Department of Health,Leicestershire Partnership NHS Trust,02/08/22,NURSE - BAND 5 - AGENCY,Watermead Ward (Bradgate Unit),HCL NURSING,HNSI0001102,5724.56
Department of Health,Leicestershire Partnership NHS Trust,02/08/22,NURSE - BAND 2 - AGENCY,Welford Ward,HCL NURSING,HNSI0001102,2509.19
Department of Health,Leicestershire Partnership NHS Trust,02/08/22,NURSE - BAND 5 - AGENCY,Welford Ward,HCL NURSING,HNSI0001102,4128.31
Department of Health,Leicestershire Partnership NHS Trust,02/08/22,Nurse - Band 6 -Agency,CAMHS HUB / CAP,HCL WORKFORCE SOLUTIONS,HWSI0001286,6681.79
Department of Health,Leicestershire Partnership NHS Trust,02/08/22,Nurse - Band 6 -Agency,CAMHS Waiting List Monies,HCL WORKFORCE SOLUTIONS,HWSI0001286,22488.17
Department of Health,Leicestershire Partnership NHS Trust,02/08/22,Nurse - Band 6 -Agency,Crisis Response and Home Treatment,HCL WORKFORCE SOLUTIONS,HWSI0001286,2006.06
Department of Health,Leicestershire Partnership NHS Trust,02/08/22,NURSE - BAND 2 - AGENCY,CAMHS Inpatient Service,HCL NURSING,HNSI0001104,14726.07
Department of Health,Leicestershire Partnership NHS Trust,02/08/22,NURSE - BAND 5 - AGENCY,CAMHS Inpatient Service,HCL NURSING,HNSI0001104,7133.76
Department of Health,Leicestershire Partnership NHS Trust,02/08/22,Nurse - Band 6 -Agency,CAMHS Waiting List Monies,HCL NURSING,HNSI0001104,4092.80
Department of Health,Leicestershire Partnership NHS Trust,02/08/22,NURSE - BAND 2 - AGENCY,Langley Ward ED Inpatient Service,HCL NURSING,HNSI0001104,6595.88
Department of Health,Leicestershire Partnership NHS Trust,02/08/22,NURSE - BAND 5 - AGENCY,Langley Ward ED Inpatient Service,HCL NURSING,HNSI0001104,2178.42
Department of Health,Leicestershire Partnership NHS Trust,02/08/22,WIP Project Not in BS - Buildings excl Dwellings,Work in Progress,TILBURY DOUGLAS CONSTRUCTION LTD,22080016,537171.19
Department of Health,Leicestershire Partnership NHS Trust,02/08/22,WIP Project Not in BS - Buildings excl Dwellings,Work in Progress,TILBURY DOUGLAS CONSTRUCTION LTD,22080017,61946.39
Department of Health,Leicestershire Partnership NHS Trust,04/08/22,Rates,Meridian (EFM Base),BLABY DISTRICT COUNCIL,9252049276/22-23,29348.12
Department of Health,Leicestershire Partnership NHS Trust,04/08/22,NURSE - BAND 2 - AGENCY,Beechwood Ward,HCL NURSING,HNSI0001103,5500.71
Department of Health,Leicestershire Partnership NHS Trust,04/08/22,NURSE - BAND 5 - AGENCY,Beechwood Ward,HCL NURSING,HNSI0001103,2317.44
Department of Health,Leicestershire Partnership NHS Trust,04/08/22,NURSE - BAND 5 - AGENCY,City Planned Care - East,HCL NURSING,HNSI0001103,13653.59
Department of Health,Leicestershire Partnership NHS Trust,04/08/22,NURSE - BAND 5 - AGENCY,City Planned Care - West,HCL NURSING,HNSI0001103,7779.82
Department of Health,Leicestershire Partnership NHS Trust,04/08/22,NURSE - BAND 2 - AGENCY,Clarendon Ward,HCL NURSING,HNSI0001103,4675.66
Department of Health,Leicestershire Partnership NHS Trust,04/08/22,NURSE - BAND 5 - AGENCY,Clarendon Ward,HCL NURSING,HNSI0001103,2637.34
Department of Health,Leicestershire Partnership NHS Trust,04/08/22,NURSE - BAND 2 - AGENCY,Coalville Snibston Ward,HCL NURSING,HNSI0001103,4563.74
Department of Health,Leicestershire Partnership NHS Trust,04/08/22,NURSE - BAND 5 - AGENCY,Coalville Snibston Ward,HCL NURSING,HNSI0001103,1381.88
Department of Health,Leicestershire Partnership NHS Trust,04/08/22,NURSE - BAND 2 - AGENCY,Coalville Ward 2,HCL NURSING,HNSI0001103,3112.48
Department of Health,Leicestershire Partnership NHS Trust,04/08/22,NURSE - BAND 5 - AGENCY,Coalville Ward 2,HCL NURSING,HNSI0001103,2997.16
Department of Health,Leicestershire Partnership NHS Trust,04/08/22,NURSE - BAND 2 - AGENCY,Dalgliesh Ward,HCL NURSING,HNSI0001103,822.87
Department of Health,Leicestershire Partnership NHS Trust,04/08/22,NURSE - BAND 5 - AGENCY,Dalgliesh Ward,HCL NURSING,HNSI0001103,2487.68
Department of Health,Leicestershire Partnership NHS Trust,04/08/22,NURSE - BAND 5 - AGENCY,"East Planned Care - Oadby,Wigston & Harborough",HCL NURSING,HNSI0001103,2075.15
Department of Health,Leicestershire Partnership NHS Trust,04/08/22,NURSE - BAND 2 - AGENCY,H&B Comm Hosp East Ward,HCL NURSING,HNSI0001103,2950.97
Department of Health,Leicestershire Partnership NHS Trust,04/08/22,NURSE - BAND 5 - AGENCY,H&B Comm Hosp East Ward,HCL NURSING,HNSI0001103,6551.81
Department of Health,Leicestershire Partnership NHS Trust,04/08/22,NURSE - BAND 2 - AGENCY,H&B Comm Hosp North Ward,HCL NURSING,HNSI0001103,4561.05
Department of Health,Leicestershire Partnership NHS Trust,04/08/22,NURSE - BAND 5 - AGENCY,H&B Comm Hosp North Ward,HCL NURSING,HNSI0001103,2600.33
Department of Health,Leicestershire Partnership NHS Trust,04/08/22,NURSE - BAND 2 - AGENCY,Lough Swithland Ward,HCL NURSING,HNSI0001103,2669.80
Department of Health,Leicestershire Partnership NHS Trust,04/08/22,NURSE - BAND 5 - AGENCY,Lough Swithland Ward,HCL NURSING,HNSI0001103,2231.42
Department of Health,Leicestershire Partnership NHS Trust,04/08/22,NURSE - BAND 2 - AGENCY,Rutland Ward Nursing,HCL NURSING,HNSI0001103,1138.03
Department of Health,Leicestershire Partnership NHS Trust,04/08/22,NURSE - BAND 5 - AGENCY,Rutland Ward Nursing,HCL NURSING,HNSI0001103,3635.14
Department of Health,Leicestershire Partnership NHS Trust,04/08/22,NURSE - BAND 2 - AGENCY,St Lukes Stroke Ward,HCL NURSING,HNSI0001103,7244.90
Department of Health,Leicestershire Partnership NHS Trust,04/08/22,NURSE - BAND 5 - AGENCY,St Lukes Stroke Ward,HCL NURSING,HNSI0001103,1849.90
Department of Health,Leicestershire Partnership NHS Trust,04/08/22,NURSE - BAND 2 - AGENCY,St Lukes Ward 3,HCL NURSING,HNSI0001103,3698.55
Department of Health,Leicestershire Partnership NHS Trust,04/08/22,NURSE - BAND 5 - AGENCY,Wakerley Ward,HCL NURSING,HNSI0001103,2761.26
Department of Health,Leicestershire Partnership NHS Trust,05/08/22,Nurse - Band 6 -Agency,AMH - Central Access Point,HCL NURSING,HNSI0001108,1170.65
Department of Health,Leicestershire Partnership NHS Trust,05/08/22,Nurse - Band 6 -Agency,Adult County West Leicestershire CMHT,HCL NURSING,HNSI0001108,2159.87
Department of Health,Leicestershire Partnership NHS Trust,05/08/22,Nurse - Band 6 -Agency,Adult County- East Leicester CMHT,HCL NURSING,HNSI0001108,1131.79
Department of Health,Leicestershire Partnership NHS Trust,05/08/22,NURSE - BAND 2 - AGENCY,Agnes Unit,HCL NURSING,HNSI0001108,20667.69
Department of Health,Leicestershire Partnership NHS Trust,05/08/22,NURSE - BAND 5 - AGENCY,Agnes Unit,HCL NURSING,HNSI0001108,18451.86
Department of Health,Leicestershire Partnership NHS Trust,05/08/22,NURSE - BAND 2 - AGENCY,Ashby Ward (Bradgate Unit),HCL NURSING,HNSI0001108,3475.93
Department of Health,Leicestershire Partnership NHS Trust,05/08/22,NURSE - BAND 5 - AGENCY,Ashby Ward (Bradgate Unit),HCL NURSING,HNSI0001108,8635.69
Department of Health,Leicestershire Partnership NHS Trust,05/08/22,NURSE - BAND 5 - AGENCY,Aston Ward (Bradgate Unit),HCL NURSING,HNSI0001108,1108.28
Department of Health,Leicestershire Partnership NHS Trust,05/08/22,NURSE - BAND 2 - AGENCY,Beaumont Ward - Bradgate Unit,HCL NURSING,HNSI0001108,6201.09
Department of Health,Leicestershire Partnership NHS Trust,05/08/22,NURSE - BAND 5 - AGENCY,Beaumont Ward - Bradgate Unit,HCL NURSING,HNSI0001108,11064.96
Department of Health,Leicestershire Partnership NHS Trust,05/08/22,NURSE - BAND 2 - AGENCY,Belvoir Psychiatric Intensive Care Unit,HCL NURSING,HNSI0001108,2559.30
Department of Health,Leicestershire Partnership NHS Trust,05/08/22,NURSE - BAND 5 - AGENCY,Belvoir Psychiatric Intensive Care Unit,HCL NURSING,HNSI0001108,6037.49
Department of Health,Leicestershire Partnership NHS Trust,05/08/22,NURSE - BAND 2 - AGENCY,Bosworth Ward - Bradgate Unit,HCL NURSING,HNSI0001108,4014.70
Department of Health,Leicestershire Partnership NHS Trust,05/08/22,NURSE - BAND 5 - AGENCY,Bosworth Ward - Bradgate Unit,HCL NURSING,HNSI0001108,3598.76
Department of Health,Leicestershire Partnership NHS Trust,05/08/22,NURSE - BAND 2 - AGENCY,Cedar (Willows),HCL NURSING,HNSI0001108,1558.74
Department of Health,Leicestershire Partnership NHS Trust,05/08/22,NURSE - BAND 5 - AGENCY,Cedar (Willows),HCL NURSING,HNSI0001108,3548.65
Department of Health,Leicestershire Partnership NHS Trust,05/08/22,NURSE - BAND 2 - AGENCY,Coleman Ward,HCL NURSING,HNSI0001108,2395.94
Department of Health,Leicestershire Partnership NHS Trust,05/08/22,NURSE - BAND 5 - AGENCY,Coleman Ward,HCL NURSING,HNSI0001108,4174.37
Department of Health,Leicestershire Partnership NHS Trust,05/08/22,NURSE - BAND 5 - AGENCY,Crisis Resolution,HCL NURSING,HNSI0001108,3024.34
Department of Health,Leicestershire Partnership NHS Trust,05/08/22,NURSE - BAND 2 - AGENCY,Griffin Ward (HPC),HCL NURSING,HNSI0001108,3390.67
Department of Health,Leicestershire Partnership NHS Trust,05/08/22,NURSE - BAND 5 - AGENCY,Griffin Ward (HPC),HCL NURSING,HNSI0001108,1369.93
Department of Health,Leicestershire Partnership NHS Trust,05/08/22,NURSE - BAND 2 - AGENCY,Gwendolen Ward,HCL NURSING,HNSI0001108,702.20
Department of Health,Leicestershire Partnership NHS Trust,05/08/22,NURSE - BAND 5 - AGENCY,Gwendolen Ward,HCL NURSING,HNSI0001108,3014.26
Department of Health,Leicestershire Partnership NHS Trust,05/08/22,NURSE - BAND 2 - AGENCY,Heather Ward,HCL NURSING,HNSI0001108,2692.15
Department of Health,Leicestershire Partnership NHS Trust,05/08/22,NURSE - BAND 5 - AGENCY,Heather Ward,HCL NURSING,HNSI0001108,8959.76
Department of Health,Leicestershire Partnership NHS Trust,05/08/22,NURSE - BAND 2 - AGENCY,Kirby Ward,HCL NURSING,HNSI0001108,5437.55
Department of Health,Leicestershire Partnership NHS Trust,05/08/22,NURSE - BAND 5 - AGENCY,Kirby Ward,HCL NURSING,HNSI0001108,1625.32
Department of Health,Leicestershire Partnership NHS Trust,05/08/22,NURSE - BAND 2 - AGENCY,Maple Ward,HCL NURSING,HNSI0001108,2641.00
Department of Health,Leicestershire Partnership NHS Trust,05/08/22,NURSE - BAND 5 - AGENCY,Maple Ward,HCL NURSING,HNSI0001108,2119.22
Department of Health,Leicestershire Partnership NHS Trust,05/08/22,Nurse - Band 6 -Agency,Mental Health Liaison Team,HCL NURSING,HNSI0001108,1790.10
Department of Health,Leicestershire Partnership NHS Trust,05/08/22,NURSE - BAND 2 - AGENCY,Mill Lodge,HCL NURSING,HNSI0001108,5513.25
Department of Health,Leicestershire Partnership NHS Trust,05/08/22,NURSE - BAND 5 - AGENCY,Mill Lodge,HCL NURSING,HNSI0001108,2657.76
Department of Health,Leicestershire Partnership NHS Trust,05/08/22,NURSE - BAND 2 - AGENCY,Phoenix Ward (HPC),HCL NURSING,HNSI0001108,2238.56
Department of Health,Leicestershire Partnership NHS Trust,05/08/22,NURSE - BAND 5 - AGENCY,Phoenix Ward (HPC),HCL NURSING,HNSI0001108,907.60
Department of Health,Leicestershire Partnership NHS Trust,05/08/22,NURSE - BAND 5 - AGENCY,Place Of Safety Assessment Unit,HCL NURSING,HNSI0001108,2099.92
Department of Health,Leicestershire Partnership NHS Trust,05/08/22,NURSE - BAND 2 - AGENCY,Stewart House,HCL NURSING,HNSI0001108,1182.88
Department of Health,Leicestershire Partnership NHS Trust,05/08/22,NURSE - BAND 5 - AGENCY,Stewart House,HCL NURSING,HNSI0001108,2419.23
Department of Health,Leicestershire Partnership NHS Trust,05/08/22,NURSE - BAND 2 - AGENCY,Sycamore (Willows),HCL NURSING,HNSI0001108,1517.58
Department of Health,Leicestershire Partnership NHS Trust,05/08/22,NURSE - BAND 5 - AGENCY,Sycamore (Willows),HCL NURSING,HNSI0001108,3004.80
Department of Health,Leicestershire Partnership NHS Trust,05/08/22,NURSE - BAND 2 - AGENCY,Thornton Ward - Bradgate Unit,HCL NURSING,HNSI0001108,762.03
Department of Health,Leicestershire Partnership NHS Trust,05/08/22,NURSE - BAND 5 - AGENCY,Thornton Ward - Bradgate Unit,HCL NURSING,HNSI0001108,2791.89
Department of Health,Leicestershire Partnership NHS Trust,05/08/22,NURSE - BAND 5 - AGENCY,Watermead Ward (Bradgate Unit),HCL NURSING,HNSI0001108,5080.54
Department of Health,Leicestershire Partnership NHS Trust,05/08/22,NURSE - BAND 2 - AGENCY,Welford Ward,HCL NURSING,HNSI0001108,187.74
Department of Health,Leicestershire Partnership NHS Trust,05/08/22,NURSE - BAND 5 - AGENCY,Welford Ward,HCL NURSING,HNSI0001108,294.22
Department of Health,Leicestershire Partnership NHS Trust,05/08/22,Nurse - Band 6 -Agency,AMH - Central Access Point,HCL WORKFORCE SOLUTIONS,HWSI0001293,7758.12
Department of Health,Leicestershire Partnership NHS Trust,05/08/22,Nurse - Band 6 -Agency,Adult County Charnwood CMHT - Loughborough Base,HCL WORKFORCE SOLUTIONS,HWSI0001293,1357.13
Department of Health,Leicestershire Partnership NHS Trust,05/08/22,Nurse - Band 6 -Agency,Crisis Resolution,HCL WORKFORCE SOLUTIONS,HWSI0001293,13189.26
Department of Health,Leicestershire Partnership NHS Trust,05/08/22,Nurse - Band 6 -Agency,CAMHS HUB / CAP,HCL WORKFORCE SOLUTIONS,HWSI0001295,10820.52
Department of Health,Leicestershire Partnership NHS Trust,05/08/22,Nurse - Band 6 -Agency,CAMHS Waiting List Monies,HCL WORKFORCE SOLUTIONS,HWSI0001295,19200.20
Department of Health,Leicestershire Partnership NHS Trust,05/08/22,Nurse - Band 6 -Agency,Crisis Response and Home Treatment,HCL WORKFORCE SOLUTIONS,HWSI0001295,1934.85
Department of Health,Leicestershire Partnership NHS Trust,05/08/22,NURSE - BAND 2 - AGENCY,CAMHS ED Team,HCL NURSING,HNSI0001110,2639.81
Department of Health,Leicestershire Partnership NHS Trust,05/08/22,NURSE - BAND 2 - AGENCY,CAMHS Inpatient Service,HCL NURSING,HNSI0001110,16342.25
Department of Health,Leicestershire Partnership NHS Trust,05/08/22,NURSE - BAND 5 - AGENCY,CAMHS Inpatient Service,HCL NURSING,HNSI0001110,6077.68
Department of Health,Leicestershire Partnership NHS Trust,05/08/22,Nurse - Band 6 -Agency,CAMHS Waiting List Monies,HCL NURSING,HNSI0001110,6486.27
Department of Health,Leicestershire Partnership NHS Trust,05/08/22,NURSE - BAND 2 - AGENCY,Langley Ward ED Inpatient Service,HCL NURSING,HNSI0001110,5506.87
Department of Health,Leicestershire Partnership NHS Trust,05/08/22,NURSE - BAND 5 - AGENCY,Langley Ward ED Inpatient Service,HCL NURSING,HNSI0001110,2492.64
Department of Health,Leicestershire Partnership NHS Trust,08/08/22,Crs_NHS_LT1y -Resus Inventory Supplied.,Balance Sheet Collection,SUPPLY CHAIN CO LTD,1123094803,34024.72
Department of Health,Leicestershire Partnership NHS Trust,08/08/22,Payroll Deductions -Home Electronics 70 July 22,Balance Sheet Collection,SME HCI LTD,140530,33271.70
Department of Health,Leicestershire Partnership NHS Trust,09/08/22,NURSE - BAND 2 - AGENCY,Beechwood Ward,HCL NURSING,HNSI0001109,4294.52
Department of Health,Leicestershire Partnership NHS Trust,09/08/22,NURSE - BAND 5 - AGENCY,Beechwood Ward,HCL NURSING,HNSI0001109,3604.04
Department of Health,Leicestershire Partnership NHS Trust,09/08/22,NURSE - BAND 5 - AGENCY,City Planned Care - East,HCL NURSING,HNSI0001109,12683.55
Department of Health,Leicestershire Partnership NHS Trust,09/08/22,NURSE - BAND 5 - AGENCY,City Planned Care - West,HCL NURSING,HNSI0001109,9108.16
Department of Health,Leicestershire Partnership NHS Trust,09/08/22,NURSE - BAND 2 - AGENCY,Clarendon Ward,HCL NURSING,HNSI0001109,4296.10
Department of Health,Leicestershire Partnership NHS Trust,09/08/22,NURSE - BAND 5 - AGENCY,Clarendon Ward,HCL NURSING,HNSI0001109,3398.16
Department of Health,Leicestershire Partnership NHS Trust,09/08/22,NURSE - BAND 2 - AGENCY,Coalville Snibston Ward,HCL NURSING,HNSI0001109,5619.90
Department of Health,Leicestershire Partnership NHS Trust,09/08/22,NURSE - BAND 5 - AGENCY,Coalville Snibston Ward,HCL NURSING,HNSI0001109,2974.00
Department of Health,Leicestershire Partnership NHS Trust,09/08/22,NURSE - BAND 2 - AGENCY,Coalville Ward 2,HCL NURSING,HNSI0001109,2766.74
Department of Health,Leicestershire Partnership NHS Trust,09/08/22,NURSE - BAND 5 - AGENCY,Coalville Ward 2,HCL NURSING,HNSI0001109,911.05
Department of Health,Leicestershire Partnership NHS Trust,09/08/22,NURSE - BAND 2 - AGENCY,Dalgliesh Ward,HCL NURSING,HNSI0001109,1198.05
Department of Health,Leicestershire Partnership NHS Trust,09/08/22,NURSE - BAND 5 - AGENCY,Dalgliesh Ward,HCL NURSING,HNSI0001109,6790.21
Department of Health,Leicestershire Partnership NHS Trust,09/08/22,NURSE - BAND 5 - AGENCY,"East Planned Care - Oadby,Wigston & Harborough",HCL NURSING,HNSI0001109,903.12
Department of Health,Leicestershire Partnership NHS Trust,09/08/22,NURSE - BAND 2 - AGENCY,H&B Comm Hosp East Ward,HCL NURSING,HNSI0001109,1678.67
Department of Health,Leicestershire Partnership NHS Trust,09/08/22,NURSE - BAND 5 - AGENCY,H&B Comm Hosp East Ward,HCL NURSING,HNSI0001109,4036.89
Department of Health,Leicestershire Partnership NHS Trust,09/08/22,NURSE - BAND 2 - AGENCY,H&B Comm Hosp North Ward,HCL NURSING,HNSI0001109,5056.60
Department of Health,Leicestershire Partnership NHS Trust,09/08/22,NURSE - BAND 5 - AGENCY,H&B Comm Hosp North Ward,HCL NURSING,HNSI0001109,5480.35
Department of Health,Leicestershire Partnership NHS Trust,09/08/22,NURSE - BAND 2 - AGENCY,Lough Swithland Ward,HCL NURSING,HNSI0001109,1219.52
Department of Health,Leicestershire Partnership NHS Trust,09/08/22,NURSE - BAND 5 - AGENCY,Lough Swithland Ward,HCL NURSING,HNSI0001109,577.59
Department of Health,Leicestershire Partnership NHS Trust,09/08/22,NURSE - BAND 2 - AGENCY,Rutland Ward Nursing,HCL NURSING,HNSI0001109,2971.71
Department of Health,Leicestershire Partnership NHS Trust,09/08/22,NURSE - BAND 5 - AGENCY,Rutland Ward Nursing,HCL NURSING,HNSI0001109,4978.61
Department of Health,Leicestershire Partnership NHS Trust,09/08/22,NURSE - BAND 2 - AGENCY,St Lukes Stroke Ward,HCL NURSING,HNSI0001109,2812.93
Department of Health,Leicestershire Partnership NHS Trust,09/08/22,NURSE - BAND 5 - AGENCY,St Lukes Stroke Ward,HCL NURSING,HNSI0001109,1648.89
Department of Health,Leicestershire Partnership NHS Trust,09/08/22,NURSE - BAND 2 - AGENCY,St Lukes Ward 3,HCL NURSING,HNSI0001109,1359.31
Department of Health,Leicestershire Partnership NHS Trust,09/08/22,NURSE - BAND 5 - AGENCY,St Lukes Ward 3,HCL NURSING,HNSI0001109,1932.45
Department of Health,Leicestershire Partnership NHS Trust,09/08/22,NURSE - BAND 5 - AGENCY,Wakerley Ward,HCL NURSING,HNSI0001109,634.58
Department of Health,Leicestershire Partnership NHS Trust,09/08/22,WIP Project Not in BS - Buildings excl Dwellings,Work in Progress,TILBURY DOUGLAS CONSTRUCTION LTD,22080073,52258.28
Department of Health,Leicestershire Partnership NHS Trust,09/08/22,WIP Project Not in BS - Buildings excl Dwellings,Work in Progress,TILBURY DOUGLAS CONSTRUCTION LTD,22080071,89426.77
Department of Health,Leicestershire Partnership NHS Trust,10/08/22,External Consultancy Fees,Transformational Funding,SONNETIX LIMITED,0123,25200.00
Department of Health,Leicestershire Partnership NHS Trust,11/08/22,WIP Project Not in BS - I M & T Allocations,Work in Progress,SPIRIT DIGITAL LTD,SIN220705SDI00028,162884.62
Department of Health,Leicestershire Partnership NHS Trust,11/08/22,Insurance Costs,Chief Executives Office,NHS LITIGATION AUTHORITY,SICX409654,192613.10
Department of Health,Leicestershire Partnership NHS Trust,11/08/22,Network Costs - WAN Maint,HIS Infrastructure,VIRGIN MEDIA BUSINESS,262421-197,35934.66
Department of Health,Leicestershire Partnership NHS Trust,12/08/22,Nurse - Band 6 -Agency,Adult County West Leicestershire CMHT,HCL NURSING,HNSI0001112,1079.94
Department of Health,Leicestershire Partnership NHS Trust,12/08/22,NURSE - BAND 2 - AGENCY,Agnes Unit,HCL NURSING,HNSI0001112,11868.92
Department of Health,Leicestershire Partnership NHS Trust,12/08/22,NURSE - BAND 5 - AGENCY,Agnes Unit,HCL NURSING,HNSI0001112,15247.05
Department of Health,Leicestershire Partnership NHS Trust,12/08/22,NURSE - BAND 2 - AGENCY,Ashby Ward (Bradgate Unit),HCL NURSING,HNSI0001112,6924.41
Department of Health,Leicestershire Partnership NHS Trust,12/08/22,NURSE - BAND 5 - AGENCY,Ashby Ward (Bradgate Unit),HCL NURSING,HNSI0001112,9270.95
Department of Health,Leicestershire Partnership NHS Trust,12/08/22,NURSE - BAND 2 - AGENCY,Beaumont Ward - Bradgate Unit,HCL NURSING,HNSI0001112,3709.95
Department of Health,Leicestershire Partnership NHS Trust,12/08/22,NURSE - BAND 5 - AGENCY,Beaumont Ward - Bradgate Unit,HCL NURSING,HNSI0001112,9235.71
Department of Health,Leicestershire Partnership NHS Trust,12/08/22,NURSE - BAND 2 - AGENCY,Belvoir Psychiatric Intensive Care Unit,HCL NURSING,HNSI0001112,2701.39
Department of Health,Leicestershire Partnership NHS Trust,12/08/22,NURSE - BAND 5 - AGENCY,Belvoir Psychiatric Intensive Care Unit,HCL NURSING,HNSI0001112,4191.77
Department of Health,Leicestershire Partnership NHS Trust,12/08/22,NURSE - BAND 2 - AGENCY,Bosworth Ward - Bradgate Unit,HCL NURSING,HNSI0001112,2536.70
Department of Health,Leicestershire Partnership NHS Trust,12/08/22,NURSE - BAND 5 - AGENCY,Bosworth Ward - Bradgate Unit,HCL NURSING,HNSI0001112,5881.09
Department of Health,Leicestershire Partnership NHS Trust,12/08/22,NURSE - BAND 2 - AGENCY,Cedar (Willows),HCL NURSING,HNSI0001112,1800.04
Department of Health,Leicestershire Partnership NHS Trust,12/08/22,NURSE - BAND 5 - AGENCY,Cedar (Willows),HCL NURSING,HNSI0001112,2455.74
Department of Health,Leicestershire Partnership NHS Trust,12/08/22,Nurse - Band 6 -Agency,City West CMHT MHSOP,HCL NURSING,HNSI0001112,1056.00
Department of Health,Leicestershire Partnership NHS Trust,12/08/22,NURSE - BAND 2 - AGENCY,Coleman Ward,HCL NURSING,HNSI0001112,5705.82
Department of Health,Leicestershire Partnership NHS Trust,12/08/22,NURSE - BAND 5 - AGENCY,Coleman Ward,HCL NURSING,HNSI0001112,5462.57
Department of Health,Leicestershire Partnership NHS Trust,12/08/22,NURSE - BAND 5 - AGENCY,Crisis Resolution,HCL NURSING,HNSI0001112,2763.84
Department of Health,Leicestershire Partnership NHS Trust,12/08/22,Nurse - Band 6 -Agency,Crisis Resolution,HCL NURSING,HNSI0001112,2080.96
Department of Health,Leicestershire Partnership NHS Trust,12/08/22,NURSE - BAND 2 - AGENCY,Griffin Ward (HPC),HCL NURSING,HNSI0001112,2092.65
Department of Health,Leicestershire Partnership NHS Trust,12/08/22,NURSE - BAND 5 - AGENCY,Griffin Ward (HPC),HCL NURSING,HNSI0001112,5298.10
Department of Health,Leicestershire Partnership NHS Trust,12/08/22,NURSE - BAND 2 - AGENCY,Gwendolen Ward,HCL NURSING,HNSI0001112,1300.65
Department of Health,Leicestershire Partnership NHS Trust,12/08/22,NURSE - BAND 5 - AGENCY,Gwendolen Ward,HCL NURSING,HNSI0001112,1980.63
Department of Health,Leicestershire Partnership NHS Trust,12/08/22,NURSE - BAND 2 - AGENCY,Heather Ward,HCL NURSING,HNSI0001112,1114.63
Department of Health,Leicestershire Partnership NHS Trust,12/08/22,NURSE - BAND 5 - AGENCY,Heather Ward,HCL NURSING,HNSI0001112,5413.74
Department of Health,Leicestershire Partnership NHS Trust,12/08/22,NURSE - BAND 2 - AGENCY,Kirby Ward,HCL NURSING,HNSI0001112,2422.85
Department of Health,Leicestershire Partnership NHS Trust,12/08/22,NURSE - BAND 5 - AGENCY,Kirby Ward,HCL NURSING,HNSI0001112,1458.54
Department of Health,Leicestershire Partnership NHS Trust,12/08/22,NURSE - BAND 2 - AGENCY,Maple Ward,HCL NURSING,HNSI0001112,2573.82
Department of Health,Leicestershire Partnership NHS Trust,12/08/22,NURSE - BAND 5 - AGENCY,Maple Ward,HCL NURSING,HNSI0001112,4846.39
Department of Health,Leicestershire Partnership NHS Trust,12/08/22,Nurse - Band 6 -Agency,Mental Health Liaison Team,HCL NURSING,HNSI0001112,1790.10
Department of Health,Leicestershire Partnership NHS Trust,12/08/22,NURSE - BAND 2 - AGENCY,Mill Lodge,HCL NURSING,HNSI0001112,3693.00
Department of Health,Leicestershire Partnership NHS Trust,12/08/22,NURSE - BAND 5 - AGENCY,Mill Lodge,HCL NURSING,HNSI0001112,2880.70
Department of Health,Leicestershire Partnership NHS Trust,12/08/22,NURSE - BAND 2 - AGENCY,Phoenix Ward (HPC),HCL NURSING,HNSI0001112,1981.73
Department of Health,Leicestershire Partnership NHS Trust,12/08/22,NURSE - BAND 5 - AGENCY,Phoenix Ward (HPC),HCL NURSING,HNSI0001112,520.04
Department of Health,Leicestershire Partnership NHS Trust,12/08/22,NURSE - BAND 2 - AGENCY,Place Of Safety Assessment Unit,HCL NURSING,HNSI0001112,264.23
Department of Health,Leicestershire Partnership NHS Trust,12/08/22,NURSE - BAND 5 - AGENCY,Place Of Safety Assessment Unit,HCL NURSING,HNSI0001112,1434.74
Department of Health,Leicestershire Partnership NHS Trust,12/08/22,NURSE - BAND 2 - AGENCY,Stewart House,HCL NURSING,HNSI0001112,592.08
Department of Health,Leicestershire Partnership NHS Trust,12/08/22,NURSE - BAND 5 - AGENCY,Stewart House,HCL NURSING,HNSI0001112,453.80
Department of Health,Leicestershire Partnership NHS Trust,12/08/22,NURSE - BAND 2 - AGENCY,Sycamore (Willows),HCL NURSING,HNSI0001112,1645.08
Department of Health,Leicestershire Partnership NHS Trust,12/08/22,NURSE - BAND 5 - AGENCY,Sycamore (Willows),HCL NURSING,HNSI0001112,3449.33
Department of Health,Leicestershire Partnership NHS Trust,12/08/22,NURSE - BAND 2 - AGENCY,Thornton Ward - Bradgate Unit,HCL NURSING,HNSI0001112,176.84
Department of Health,Leicestershire Partnership NHS Trust,12/08/22,NURSE - BAND 5 - AGENCY,Thornton Ward - Bradgate Unit,HCL NURSING,HNSI0001112,1714.99
Department of Health,Leicestershire Partnership NHS Trust,12/08/22,NURSE - BAND 5 - AGENCY,Watermead Ward (Bradgate Unit),HCL NURSING,HNSI0001112,6464.61
Department of Health,Leicestershire Partnership NHS Trust,12/08/22,NURSE - BAND 2 - AGENCY,Welford Ward,HCL NURSING,HNSI0001112,247.03
Department of Health,Leicestershire Partnership NHS Trust,12/08/22,NURSE - BAND 5 - AGENCY,Welford Ward,HCL NURSING,HNSI0001112,2534.05
Department of Health,Leicestershire Partnership NHS Trust,12/08/22,NURSE - BAND 2 - AGENCY,CAMHS ED Team,HCL NURSING,HNSI0001114,3765.45
Department of Health,Leicestershire Partnership NHS Trust,12/08/22,NURSE - BAND 2 - AGENCY,CAMHS Inpatient Service,HCL NURSING,HNSI0001114,19516.86
Department of Health,Leicestershire Partnership NHS Trust,12/08/22,NURSE - BAND 5 - AGENCY,CAMHS Inpatient Service,HCL NURSING,HNSI0001114,7842.00
Department of Health,Leicestershire Partnership NHS Trust,12/08/22,Nurse - Band 6 -Agency,CAMHS Waiting List Monies,HCL NURSING,HNSI0001114,3881.95
Department of Health,Leicestershire Partnership NHS Trust,12/08/22,NURSE - BAND 2 - AGENCY,Langley Ward ED Inpatient Service,HCL NURSING,HNSI0001114,5346.62
Department of Health,Leicestershire Partnership NHS Trust,12/08/22,NURSE - BAND 5 - AGENCY,Langley Ward ED Inpatient Service,HCL NURSING,HNSI0001114,4225.29
Department of Health,Leicestershire Partnership NHS Trust,12/08/22,Nurse - Band 6 -Agency,CAMHS HUB / CAP,HCL WORKFORCE SOLUTIONS,HWSI0001300,7719.86
Department of Health,Leicestershire Partnership NHS Trust,12/08/22,Nurse - Band 6 -Agency,CAMHS Waiting List Monies,HCL WORKFORCE SOLUTIONS,HWSI0001300,19660.77
Department of Health,Leicestershire Partnership NHS Trust,12/08/22,Nurse - Band 6 -Agency,Crisis Response and Home Treatment,HCL WORKFORCE SOLUTIONS,HWSI0001300,1952.66
Department of Health,Leicestershire Partnership NHS Trust,15/08/22,Photocopying,Estates & Facilities Central,LEXMARK INTERNATIONAL LTD,900650303755,35491.50
Department of Health,Leicestershire Partnership NHS Trust,15/08/22,Crs_NHS_LT1y -Resus Inventory Supplied.,Balance Sheet Collection,SUPPLY CHAIN CO LTD,1123101120,34374.09
Department of Health,Leicestershire Partnership NHS Trust,15/08/22,Computer Hardware,Director of Estates & Facilities Mgmt Team,DELL COMPUTERS,7402838118,34179.60
Department of Health,Leicestershire Partnership NHS Trust,15/08/22,Gas,"Beaumont Leys Health Centre (P94, LPT)",TOTAL GAS & POWER LTD,274732188/22,725.21
Department of Health,Leicestershire Partnership NHS Trust,15/08/22,Gas,"Bennion Centre (including Forest Grange Day Unit) (P8, LPT)",TOTAL GAS & POWER LTD,274732188/22,7584.50
Department of Health,Leicestershire Partnership NHS Trust,15/08/22,Gas,"Bradgate Unit (including Glenvale day Unit) (P7, LPT)",TOTAL GAS & POWER LTD,274732188/22,15338.33
Department of Health,Leicestershire Partnership NHS Trust,15/08/22,Gas,Bridge Park Plaza - First Floor (LPT),TOTAL GAS & POWER LTD,274732188/22,1228.09
Department of Health,Leicestershire Partnership NHS Trust,15/08/22,Gas,"Bridge Park Road - Units 2 and 3 (P148, LPT)",TOTAL GAS & POWER LTD,274732188/22,161.83
Department of Health,Leicestershire Partnership NHS Trust,15/08/22,Gas,"Coalville Community Hospital (P138, LPT)",TOTAL GAS & POWER LTD,274732188/22,8785.88
Department of Health,Leicestershire Partnership NHS Trust,15/08/22,Gas,"Coalville Health Centre (P121, LPT)",TOTAL GAS & POWER LTD,274732188/22,425.10
Department of Health,Leicestershire Partnership NHS Trust,15/08/22,Gas,"Evington Centre (P6, LPT)",TOTAL GAS & POWER LTD,274732188/22,1066.56
Department of Health,Leicestershire Partnership NHS Trust,15/08/22,Gas,"Farm Lodge (P34, LPT)",TOTAL GAS & POWER LTD,274732188/22,106.74
Department of Health,Leicestershire Partnership NHS Trust,15/08/22,Gas,"Feilding Palmer Hospital (Lutterworth) (P131, LPT)",TOTAL GAS & POWER LTD,274732188/22,1779.10
Department of Health,Leicestershire Partnership NHS Trust,15/08/22,Gas,"Frith Cottages 3 & 4 (P36, LPT)",TOTAL GAS & POWER LTD,274732188/22,102.40
Department of Health,Leicestershire Partnership NHS Trust,15/08/22,Gas,HIS,TOTAL GAS & POWER LTD,274732188/22,57.57
Department of Health,Leicestershire Partnership NHS Trust,15/08/22,Gas,"Hawthorne Centre - Coalville (P14, LPT)",TOTAL GAS & POWER LTD,274732188/22,307.32
Department of Health,Leicestershire Partnership NHS Trust,15/08/22,Gas,"Hinckley and Bosworth Community Hospital (Sunnyside) (P133, LPT)",TOTAL GAS & POWER LTD,274732188/22,5994.30
Department of Health,Leicestershire Partnership NHS Trust,15/08/22,Gas,"Hynca Lodge (P33, LPT)",TOTAL GAS & POWER LTD,274732188/22,157.69
Department of Health,Leicestershire Partnership NHS Trust,15/08/22,Computer Hardware,"LGH - Gwendolen House (P4, LPT)",TOTAL GAS & POWER LTD,274732188/22,667.27
Department of Health,Leicestershire Partnership NHS Trust,15/08/22,Gas,"LGH - Gwendolen House (P4, LPT)",TOTAL GAS & POWER LTD,274732188/22,-238.67
Department of Health,Leicestershire Partnership NHS Trust,15/08/22,Gas,"Loughborough Hospital (P136, LPT)",TOTAL GAS & POWER LTD,274732188/22,11714.95
Department of Health,Leicestershire Partnership NHS Trust,15/08/22,Gas,Mawson House (LPT),TOTAL GAS & POWER LTD,274732188/22,330.42
Department of Health,Leicestershire Partnership NHS Trust,15/08/22,Gas,"Mett Centre (P49, LPT)",TOTAL GAS & POWER LTD,274732188/22,287.64
Department of Health,Leicestershire Partnership NHS Trust,15/08/22,Gas,"Narborough Health Centre (P117, LPT)",TOTAL GAS & POWER LTD,274732188/22,315.59
Department of Health,Leicestershire Partnership NHS Trust,15/08/22,Gas,"Neville Centre - LGH (was DSC) (P147, LPT)",TOTAL GAS & POWER LTD,274732188/22,706.56
Department of Health,Leicestershire Partnership NHS Trust,15/08/22,Gas,"OSL House (P54, LPT)",TOTAL GAS & POWER LTD,274732188/22,321.29
Department of Health,Leicestershire Partnership NHS Trust,15/08/22,Gas,"Orchard Resource Centre (P15, LPT)",TOTAL GAS & POWER LTD,274732188/22,326.67
Department of Health,Leicestershire Partnership NHS Trust,15/08/22,Gas,"Rutland Memorial Hospital (P134, LPT)",TOTAL GAS & POWER LTD,274732188/22,-5537.04
Department of Health,Leicestershire Partnership NHS Trust,15/08/22,Gas,"Shepshed Health Centre (P123, LPT)",TOTAL GAS & POWER LTD,274732188/22,407.21
Department of Health,Leicestershire Partnership NHS Trust,15/08/22,Gas,"Springfield Road Health Centre (P92, LPT)",TOTAL GAS & POWER LTD,274732188/22,262.82
Department of Health,Leicestershire Partnership NHS Trust,15/08/22,Gas,"Stewart House (P61, LPT)",TOTAL GAS & POWER LTD,274732188/22,2775.92
Department of Health,Leicestershire Partnership NHS Trust,15/08/22,Gas,"Swithland House - London Road 352 (P44, LPT)",TOTAL GAS & POWER LTD,274732188/22,741.86
Department of Health,Leicestershire Partnership NHS Trust,15/08/22,Gas,"The Agnes Unit (AKA Assessment and Treatment Centre) (P85, LPT)",TOTAL GAS & POWER LTD,274732188/22,3644.67
Department of Health,Leicestershire Partnership NHS Trust,15/08/22,Gas,The Beacon,TOTAL GAS & POWER LTD,274732188/22,1587.30
Department of Health,Leicestershire Partnership NHS Trust,15/08/22,Gas,"The Cedars (P19, LPT)",TOTAL GAS & POWER LTD,274732188/22,154.88
Department of Health,Leicestershire Partnership NHS Trust,15/08/22,Gas,"The Grange 1 (P4, LPT)",TOTAL GAS & POWER LTD,274732188/22,205.44
Department of Health,Leicestershire Partnership NHS Trust,15/08/22,Gas,"The Grange 2 (P41, LPT)",TOTAL GAS & POWER LTD,274732188/22,105.12
Department of Health,Leicestershire Partnership NHS Trust,15/08/22,Gas,"The Willows - Cordelia Close (P22, LPT)",TOTAL GAS & POWER LTD,274732188/22,2996.96
Department of Health,Leicestershire Partnership NHS Trust,15/08/22,Gas,"Valentine Centre (P3, LPT)",TOTAL GAS & POWER LTD,274732188/22,1738.79
Department of Health,Leicestershire Partnership NHS Trust,15/08/22,Gas,"Westcotes Group -Westcotes House (P78, LPT)",TOTAL GAS & POWER LTD,274732188/22,1074.06
Department of Health,Leicestershire Partnership NHS Trust,15/08/22,Gas,"Winstanley Drive Health Centre (P8, LPT)",TOTAL GAS & POWER LTD,274732188/22,388.09
Department of Health,Leicestershire Partnership NHS Trust,17/08/22,NURSE - BAND 2 - AGENCY,Beechwood Ward,HCL NURSING,HNSI0001113,4046.46
Department of Health,Leicestershire Partnership NHS Trust,17/08/22,NURSE - BAND 5 - AGENCY,Beechwood Ward,HCL NURSING,HNSI0001113,2424.02
Department of Health,Leicestershire Partnership NHS Trust,17/08/22,NURSE - BAND 5 - AGENCY,City Planned Care - East,HCL NURSING,HNSI0001113,12946.86
Department of Health,Leicestershire Partnership NHS Trust,17/08/22,NURSE - BAND 5 - AGENCY,City Planned Care - West,HCL NURSING,HNSI0001113,9789.67
Department of Health,Leicestershire Partnership NHS Trust,17/08/22,NURSE - BAND 2 - AGENCY,Clarendon Ward,HCL NURSING,HNSI0001113,4241.97
Department of Health,Leicestershire Partnership NHS Trust,17/08/22,NURSE - BAND 5 - AGENCY,Clarendon Ward,HCL NURSING,HNSI0001113,1464.57
Department of Health,Leicestershire Partnership NHS Trust,17/08/22,NURSE - BAND 2 - AGENCY,Coalville Snibston Ward,HCL NURSING,HNSI0001113,4635.87
Department of Health,Leicestershire Partnership NHS Trust,17/08/22,NURSE - BAND 5 - AGENCY,Coalville Snibston Ward,HCL NURSING,HNSI0001113,3345.44
Department of Health,Leicestershire Partnership NHS Trust,17/08/22,NURSE - BAND 2 - AGENCY,Coalville Ward 2,HCL NURSING,HNSI0001113,1415.25
Department of Health,Leicestershire Partnership NHS Trust,17/08/22,NURSE - BAND 5 - AGENCY,Coalville Ward 2,HCL NURSING,HNSI0001113,606.71
Department of Health,Leicestershire Partnership NHS Trust,17/08/22,NURSE - BAND 2 - AGENCY,Dalgliesh Ward,HCL NURSING,HNSI0001113,3810.05
Department of Health,Leicestershire Partnership NHS Trust,17/08/22,NURSE - BAND 5 - AGENCY,Dalgliesh Ward,HCL NURSING,HNSI0001113,7351.26
Department of Health,Leicestershire Partnership NHS Trust,17/08/22,NURSE - BAND 5 - AGENCY,"East Planned Care - Oadby,Wigston & Harborough",HCL NURSING,HNSI0001113,1360.64
Department of Health,Leicestershire Partnership NHS Trust,17/08/22,NURSE - BAND 2 - AGENCY,H&B Comm Hosp East Ward,HCL NURSING,HNSI0001113,2863.65
Department of Health,Leicestershire Partnership NHS Trust,17/08/22,NURSE - BAND 5 - AGENCY,H&B Comm Hosp East Ward,HCL NURSING,HNSI0001113,9009.89
Department of Health,Leicestershire Partnership NHS Trust,17/08/22,NURSE - BAND 2 - AGENCY,H&B Comm Hosp North Ward,HCL NURSING,HNSI0001113,7765.12
Department of Health,Leicestershire Partnership NHS Trust,17/08/22,NURSE - BAND 5 - AGENCY,H&B Comm Hosp North Ward,HCL NURSING,HNSI0001113,4261.69
Department of Health,Leicestershire Partnership NHS Trust,17/08/22,NURSE - BAND 2 - AGENCY,Lough Swithland Ward,HCL NURSING,HNSI0001113,2505.86
Department of Health,Leicestershire Partnership NHS Trust,17/08/22,NURSE - BAND 5 - AGENCY,Lough Swithland Ward,HCL NURSING,HNSI0001113,4332.95
Department of Health,Leicestershire Partnership NHS Trust,17/08/22,NURSE - BAND 2 - AGENCY,Rutland Ward Nursing,HCL NURSING,HNSI0001113,1921.03
Department of Health,Leicestershire Partnership NHS Trust,17/08/22,NURSE - BAND 5 - AGENCY,Rutland Ward Nursing,HCL NURSING,HNSI0001113,5895.84
Department of Health,Leicestershire Partnership NHS Trust,17/08/22,NURSE - BAND 2 - AGENCY,St Lukes Stroke Ward,HCL NURSING,HNSI0001113,4362.80
Department of Health,Leicestershire Partnership NHS Trust,17/08/22,NURSE - BAND 5 - AGENCY,St Lukes Stroke Ward,HCL NURSING,HNSI0001113,1267.71
Department of Health,Leicestershire Partnership NHS Trust,17/08/22,NURSE - BAND 2 - AGENCY,St Lukes Ward 3,HCL NURSING,HNSI0001113,1885.20
Department of Health,Leicestershire Partnership NHS Trust,17/08/22,NURSE - BAND 5 - AGENCY,St Lukes Ward 3,HCL NURSING,HNSI0001113,2963.84
Department of Health,Leicestershire Partnership NHS Trust,17/08/22,NURSE - BAND 5 - AGENCY,Wakerley Ward,HCL NURSING,HNSI0001113,294.22
Department of Health,Leicestershire Partnership NHS Trust,17/08/22,External Consultancy Fees,FM Transformation,TURNER & TOWNSEND COST MAN,PRIV00001428,27829.01
Department of Health,Leicestershire Partnership NHS Trust,19/08/22,Computer Software,Learning & Develpoment,THINK ASSOCIATES LTD,X-2831,35772.00
Department of Health,Leicestershire Partnership NHS Trust,19/08/22,Legal Fees,Chief Executives Office,BROWNE JACOBSON LLP,IN-000123381,27911.40
Department of Health,Leicestershire Partnership NHS Trust,22/08/22,Medical Equipment Repairs / Maintenance,Medical Devices Maintenance (LPT),SUPPLY CHAIN CO LTD,2123003572,29138.78
Department of Health,Leicestershire Partnership NHS Trust,22/08/22,Crs_NHS_LT1y -Resus Inventory Supplied.,Balance Sheet Collection,SUPPLY CHAIN CO LTD,1123106193,29546.51
Department of Health,Leicestershire Partnership NHS Trust,22/08/22,Med GP Trainees,Medical Trainees,ST.HELENS & KNOWSLEY NHS TRUST,16815788,75000.00
Department of Health,Leicestershire Partnership NHS Trust,22/08/22,NURSE - BAND 5 - AGENCY,Beechwood Ward,HCL NURSING,HNSI0001117,7461.70
Department of Health,Leicestershire Partnership NHS Trust,22/08/22,NURSE - BAND 5 - AGENCY,City Planned Care - East,HCL NURSING,HNSI0001117,9308.63
Department of Health,Leicestershire Partnership NHS Trust,22/08/22,NURSE - BAND 5 - AGENCY,City Planned Care - West,HCL NURSING,HNSI0001117,11334.67
Department of Health,Leicestershire Partnership NHS Trust,22/08/22,NURSE - BAND 2 - AGENCY,Clarendon Ward,HCL NURSING,HNSI0001117,4566.71
Department of Health,Leicestershire Partnership NHS Trust,22/08/22,NURSE - BAND 5 - AGENCY,Clarendon Ward,HCL NURSING,HNSI0001117,4754.16
Department of Health,Leicestershire Partnership NHS Trust,22/08/22,NURSE - BAND 2 - AGENCY,Coalville Snibston Ward,HCL NURSING,HNSI0001117,5917.65
Department of Health,Leicestershire Partnership NHS Trust,22/08/22,NURSE - BAND 5 - AGENCY,Coalville Snibston Ward,HCL NURSING,HNSI0001117,1783.90
Department of Health,Leicestershire Partnership NHS Trust,22/08/22,NURSE - BAND 2 - AGENCY,Coalville Ward 2,HCL NURSING,HNSI0001117,347.15
Department of Health,Leicestershire Partnership NHS Trust,22/08/22,NURSE - BAND 5 - AGENCY,Coalville Ward 2,HCL NURSING,HNSI0001117,2235.03
Department of Health,Leicestershire Partnership NHS Trust,22/08/22,NURSE - BAND 2 - AGENCY,Dalgliesh Ward,HCL NURSING,HNSI0001117,5237.67
Department of Health,Leicestershire Partnership NHS Trust,22/08/22,NURSE - BAND 5 - AGENCY,Dalgliesh Ward,HCL NURSING,HNSI0001117,2929.46
Department of Health,Leicestershire Partnership NHS Trust,22/08/22,NURSE - BAND 5 - AGENCY,"East Planned Care - Oadby,Wigston & Harborough",HCL NURSING,HNSI0001117,2609.89
Department of Health,Leicestershire Partnership NHS Trust,22/08/22,NURSE - BAND 2 - AGENCY,H&B Comm Hosp East Ward,HCL NURSING,HNSI0001117,4796.92
Department of Health,Leicestershire Partnership NHS Trust,22/08/22,NURSE - BAND 5 - AGENCY,H&B Comm Hosp East Ward,HCL NURSING,HNSI0001117,5677.93
Department of Health,Leicestershire Partnership NHS Trust,22/08/22,NURSE - BAND 2 - AGENCY,H&B Comm Hosp North Ward,HCL NURSING,HNSI0001117,5111.97
Department of Health,Leicestershire Partnership NHS Trust,22/08/22,NURSE - BAND 5 - AGENCY,H&B Comm Hosp North Ward,HCL NURSING,HNSI0001117,2818.73
Department of Health,Leicestershire Partnership NHS Trust,22/08/22,NURSE - BAND 2 - AGENCY,Lough Swithland Ward,HCL NURSING,HNSI0001117,2554.73
Department of Health,Leicestershire Partnership NHS Trust,22/08/22,NURSE - BAND 5 - AGENCY,Lough Swithland Ward,HCL NURSING,HNSI0001117,3932.27
Department of Health,Leicestershire Partnership NHS Trust,22/08/22,NURSE - BAND 2 - AGENCY,Rutland Ward Nursing,HCL NURSING,HNSI0001117,1773.51
Department of Health,Leicestershire Partnership NHS Trust,22/08/22,NURSE - BAND 5 - AGENCY,Rutland Ward Nursing,HCL NURSING,HNSI0001117,2871.26
Department of Health,Leicestershire Partnership NHS Trust,22/08/22,NURSE - BAND 2 - AGENCY,St Lukes Stroke Ward,HCL NURSING,HNSI0001117,4620.26
Department of Health,Leicestershire Partnership NHS Trust,22/08/22,NURSE - BAND 5 - AGENCY,St Lukes Stroke Ward,HCL NURSING,HNSI0001117,1517.05
Department of Health,Leicestershire Partnership NHS Trust,22/08/22,NURSE - BAND 2 - AGENCY,St Lukes Ward 3,HCL NURSING,HNSI0001117,1009.14
Department of Health,Leicestershire Partnership NHS Trust,22/08/22,NURSE - BAND 5 - AGENCY,St Lukes Ward 3,HCL NURSING,HNSI0001117,1818.48
Department of Health,Leicestershire Partnership NHS Trust,22/08/22,NURSE - BAND 5 - AGENCY,Wakerley Ward,HCL NURSING,HNSI0001117,1832.24
Department of Health,Leicestershire Partnership NHS Trust,23/08/22,NURSE - BAND 2 - AGENCY,CAMHS ED Team,HCL NURSING,HNSI0001118,6080.01
Department of Health,Leicestershire Partnership NHS Trust,23/08/22,NURSE - BAND 2 - AGENCY,CAMHS Inpatient Service,HCL NURSING,HNSI0001118,22857.67
Department of Health,Leicestershire Partnership NHS Trust,23/08/22,NURSE - BAND 5 - AGENCY,CAMHS Inpatient Service,HCL NURSING,HNSI0001118,4411.90
Department of Health,Leicestershire Partnership NHS Trust,23/08/22,Nurse - Band 6 -Agency,CAMHS Waiting List Monies,HCL NURSING,HNSI0001118,9257.92
Department of Health,Leicestershire Partnership NHS Trust,23/08/22,NURSE - BAND 2 - AGENCY,Langley Ward ED Inpatient Service,HCL NURSING,HNSI0001118,6987.71
Department of Health,Leicestershire Partnership NHS Trust,23/08/22,NURSE - BAND 5 - AGENCY,Langley Ward ED Inpatient Service,HCL NURSING,HNSI0001118,4127.65
Department of Health,Leicestershire Partnership NHS Trust,23/08/22,Nurse - Band 6 -Agency,CAMHS HUB / CAP,HCL WORKFORCE SOLUTIONS,HWSI0001315,8305.11
Department of Health,Leicestershire Partnership NHS Trust,23/08/22,Nurse - Band 6 -Agency,CAMHS Waiting List Monies,HCL WORKFORCE SOLUTIONS,HWSI0001315,24011.69
Department of Health,Leicestershire Partnership NHS Trust,23/08/22,Nurse - Band 6 -Agency,Crisis Response and Home Treatment,HCL WORKFORCE SOLUTIONS,HWSI0001315,1934.86
Department of Health,Leicestershire Partnership NHS Trust,23/08/22,Nurse - Band 6 -Agency,AMH - Central Access Point,HCL NURSING,HNSI0001116,2976.54
Department of Health,Leicestershire Partnership NHS Trust,23/08/22,Nurse - Band 6 -Agency,Adult County- East Leicester CMHT,HCL NURSING,HNSI0001116,1317.90
Department of Health,Leicestershire Partnership NHS Trust,23/08/22,NURSE - BAND 2 - AGENCY,Agnes Unit,HCL NURSING,HNSI0001116,14704.67
Department of Health,Leicestershire Partnership NHS Trust,23/08/22,NURSE - BAND 5 - AGENCY,Agnes Unit,HCL NURSING,HNSI0001116,20402.47
Department of Health,Leicestershire Partnership NHS Trust,23/08/22,NURSE - BAND 2 - AGENCY,Ashby Ward (Bradgate Unit),HCL NURSING,HNSI0001116,11504.71
Department of Health,Leicestershire Partnership NHS Trust,23/08/22,NURSE - BAND 5 - AGENCY,Ashby Ward (Bradgate Unit),HCL NURSING,HNSI0001116,11441.35
Department of Health,Leicestershire Partnership NHS Trust,23/08/22,NURSE - BAND 5 - AGENCY,Aston Ward (Bradgate Unit),HCL NURSING,HNSI0001116,2812.62
Department of Health,Leicestershire Partnership NHS Trust,23/08/22,NURSE - BAND 2 - AGENCY,Beaumont Ward - Bradgate Unit,HCL NURSING,HNSI0001116,5587.64
Department of Health,Leicestershire Partnership NHS Trust,23/08/22,NURSE - BAND 5 - AGENCY,Beaumont Ward - Bradgate Unit,HCL NURSING,HNSI0001116,11295.39
Department of Health,Leicestershire Partnership NHS Trust,23/08/22,NURSE - BAND 2 - AGENCY,Belvoir Psychiatric Intensive Care Unit,HCL NURSING,HNSI0001116,1309.94
Department of Health,Leicestershire Partnership NHS Trust,23/08/22,NURSE - BAND 5 - AGENCY,Belvoir Psychiatric Intensive Care Unit,HCL NURSING,HNSI0001116,1968.10
Department of Health,Leicestershire Partnership NHS Trust,23/08/22,NURSE - BAND 2 - AGENCY,Bosworth Ward - Bradgate Unit,HCL NURSING,HNSI0001116,1655.27
Department of Health,Leicestershire Partnership NHS Trust,23/08/22,NURSE - BAND 5 - AGENCY,Bosworth Ward - Bradgate Unit,HCL NURSING,HNSI0001116,7711.66
Department of Health,Leicestershire Partnership NHS Trust,23/08/22,NURSE - BAND 2 - AGENCY,Cedar (Willows),HCL NURSING,HNSI0001116,1238.58
Department of Health,Leicestershire Partnership NHS Trust,23/08/22,NURSE - BAND 5 - AGENCY,Cedar (Willows),HCL NURSING,HNSI0001116,3353.09
Department of Health,Leicestershire Partnership NHS Trust,23/08/22,Nurse - Band 6 -Agency,City West CMHT MHSOP,HCL NURSING,HNSI0001116,1056.00
Department of Health,Leicestershire Partnership NHS Trust,23/08/22,NURSE - BAND 2 - AGENCY,Coleman Ward,HCL NURSING,HNSI0001116,3491.28
Department of Health,Leicestershire Partnership NHS Trust,23/08/22,NURSE - BAND 5 - AGENCY,Coleman Ward,HCL NURSING,HNSI0001116,3517.69
Department of Health,Leicestershire Partnership NHS Trust,23/08/22,NURSE - BAND 5 - AGENCY,Crisis Resolution,HCL NURSING,HNSI0001116,2566.99
Department of Health,Leicestershire Partnership NHS Trust,23/08/22,Nurse - Band 6 -Agency,Crisis Resolution,HCL NURSING,HNSI0001116,719.98
Department of Health,Leicestershire Partnership NHS Trust,23/08/22,NURSE - BAND 2 - AGENCY,Griffin Ward (HPC),HCL NURSING,HNSI0001116,3538.68
Department of Health,Leicestershire Partnership NHS Trust,23/08/22,NURSE - BAND 5 - AGENCY,Griffin Ward (HPC),HCL NURSING,HNSI0001116,5649.93
Department of Health,Leicestershire Partnership NHS Trust,23/08/22,NURSE - BAND 2 - AGENCY,Gwendolen Ward,HCL NURSING,HNSI0001116,360.58
Department of Health,Leicestershire Partnership NHS Trust,23/08/22,NURSE - BAND 5 - AGENCY,Gwendolen Ward,HCL NURSING,HNSI0001116,1706.78
Department of Health,Leicestershire Partnership NHS Trust,23/08/22,NURSE - BAND 2 - AGENCY,Heather Ward,HCL NURSING,HNSI0001116,2494.08
Department of Health,Leicestershire Partnership NHS Trust,23/08/22,NURSE - BAND 5 - AGENCY,Heather Ward,HCL NURSING,HNSI0001116,8167.58
Department of Health,Leicestershire Partnership NHS Trust,23/08/22,NURSE - BAND 2 - AGENCY,Kirby Ward,HCL NURSING,HNSI0001116,5133.12
Department of Health,Leicestershire Partnership NHS Trust,23/08/22,NURSE - BAND 5 - AGENCY,Kirby Ward,HCL NURSING,HNSI0001116,1462.66
Department of Health,Leicestershire Partnership NHS Trust,23/08/22,NURSE - BAND 2 - AGENCY,Maple Ward,HCL NURSING,HNSI0001116,672.78
Department of Health,Leicestershire Partnership NHS Trust,23/08/22,NURSE - BAND 5 - AGENCY,Maple Ward,HCL NURSING,HNSI0001116,3101.34
Department of Health,Leicestershire Partnership NHS Trust,23/08/22,Nurse - Band 6 -Agency,Mental Health Liaison Team,HCL NURSING,HNSI0001116,1790.10
Department of Health,Leicestershire Partnership NHS Trust,23/08/22,NURSE - BAND 2 - AGENCY,Mill Lodge,HCL NURSING,HNSI0001116,916.51
Department of Health,Leicestershire Partnership NHS Trust,23/08/22,NURSE - BAND 5 - AGENCY,Mill Lodge,HCL NURSING,HNSI0001116,3062.54
Department of Health,Leicestershire Partnership NHS Trust,23/08/22,NURSE - BAND 2 - AGENCY,Phoenix Ward (HPC),HCL NURSING,HNSI0001116,1446.57
Department of Health,Leicestershire Partnership NHS Trust,23/08/22,NURSE - BAND 5 - AGENCY,Phoenix Ward (HPC),HCL NURSING,HNSI0001116,2663.36
Department of Health,Leicestershire Partnership NHS Trust,23/08/22,NURSE - BAND 2 - AGENCY,Place Of Safety Assessment Unit,HCL NURSING,HNSI0001116,2494.98
Department of Health,Leicestershire Partnership NHS Trust,23/08/22,NURSE - BAND 2 - AGENCY,Stewart House,HCL NURSING,HNSI0001116,359.25
Department of Health,Leicestershire Partnership NHS Trust,23/08/22,NURSE - BAND 5 - AGENCY,Stewart House,HCL NURSING,HNSI0001116,907.60
Department of Health,Leicestershire Partnership NHS Trust,23/08/22,NURSE - BAND 2 - AGENCY,Sycamore (Willows),HCL NURSING,HNSI0001116,2466.32
Department of Health,Leicestershire Partnership NHS Trust,23/08/22,NURSE - BAND 5 - AGENCY,Sycamore (Willows),HCL NURSING,HNSI0001116,4076.70
Department of Health,Leicestershire Partnership NHS Trust,23/08/22,NURSE - BAND 2 - AGENCY,Thornton Ward - Bradgate Unit,HCL NURSING,HNSI0001116,730.73
Department of Health,Leicestershire Partnership NHS Trust,23/08/22,NURSE - BAND 5 - AGENCY,Thornton Ward - Bradgate Unit,HCL NURSING,HNSI0001116,2540.57
Department of Health,Leicestershire Partnership NHS Trust,23/08/22,NURSE - BAND 2 - AGENCY,Watermead Ward (Bradgate Unit),HCL NURSING,HNSI0001116,420.44
Department of Health,Leicestershire Partnership NHS Trust,23/08/22,NURSE - BAND 5 - AGENCY,Watermead Ward (Bradgate Unit),HCL NURSING,HNSI0001116,6167.30
Department of Health,Leicestershire Partnership NHS Trust,23/08/22,NURSE - BAND 5 - AGENCY,Welford Ward,HCL NURSING,HNSI0001116,1529.45
Department of Health,Leicestershire Partnership NHS Trust,23/08/22,Nurse - Band 6 -Agency,AMH - Central Access Point,HCL WORKFORCE SOLUTIONS,HWSI0001314,5019.68
Department of Health,Leicestershire Partnership NHS Trust,23/08/22,Nurse - Band 6 -Agency,Adult County Charnwood CMHT - Loughborough Base,HCL WORKFORCE SOLUTIONS,HWSI0001314,1357.12
Department of Health,Leicestershire Partnership NHS Trust,23/08/22,Nurse - Band 6 -Agency,Crisis Resolution,HCL WORKFORCE SOLUTIONS,HWSI0001314,16889.82
Department of Health,Leicestershire Partnership NHS Trust,23/08/22,Computer Software,HIS Infrastructure,PHOENIX SOFTWARE LTD,OP/I941152,693248.11
Department of Health,Leicestershire Partnership NHS Trust,24/08/22,Senior Manager - Band 8D,Business Development,NORTHAMPTONSHIRE HC NHS FT (RP1),5152660,11542.71
Department of Health,Leicestershire Partnership NHS Trust,24/08/22,Admin & Clerical - Band 5,Chief Executives Office,NORTHAMPTONSHIRE HC NHS FT (RP1),5152660,1470.01
Department of Health,Leicestershire Partnership NHS Trust,24/08/22,Admin & Clerical - Band 6,Chief Executives Office,NORTHAMPTONSHIRE HC NHS FT (RP1),5152660,2154.22
Department of Health,Leicestershire Partnership NHS Trust,24/08/22,CHIEF EXECUTIVE'S REMUNERATION,Chief Executives Office,NORTHAMPTONSHIRE HC NHS FT (RP1),5152660,16161.11
Department of Health,Leicestershire Partnership NHS Trust,24/08/22,DIRECTOR,Chief Executives Office,NORTHAMPTONSHIRE HC NHS FT (RP1),5152660,24073.18
Department of Health,Leicestershire Partnership NHS Trust,24/08/22,WIP Project Not in BS - Buildings excl Dwellings,Work in Progress,TILBURY DOUGLAS CONSTRUCTION LTD,22080273,94368.94
Department of Health,Leicestershire Partnership NHS Trust,24/08/22,FP10'S,Adult City Drugs,NHS BUS SERVICES AUTHORITY,1000074199,24375.23
Department of Health,Leicestershire Partnership NHS Trust,24/08/22,FP10'S,Adult County Drugs,NHS BUS SERVICES AUTHORITY,1000074199,16983.74
Department of Health,Leicestershire Partnership NHS Trust,24/08/22,FP10'S,CAMHS Outpatients,NHS BUS SERVICES AUTHORITY,1000074199,9030.99
Department of Health,Leicestershire Partnership NHS Trust,24/08/22,FP10'S,Community Paediatrics,NHS BUS SERVICES AUTHORITY,1000074199,13709.07
Department of Health,Leicestershire Partnership NHS Trust,24/08/22,FP10'S,Dementia Related Drugs and Investigations,NHS BUS SERVICES AUTHORITY,1000074199,7247.74
Department of Health,Leicestershire Partnership NHS Trust,24/08/22,FP10'S,Eating Disorders Outpatient Service,NHS BUS SERVICES AUTHORITY,1000074199,2952.12
Department of Health,Leicestershire Partnership NHS Trust,24/08/22,FP10'S,Forensic Services - Community,NHS BUS SERVICES AUTHORITY,1000074199,117.81
Department of Health,Leicestershire Partnership NHS Trust,24/08/22,FP10'S,LOROS Pharmacy,NHS BUS SERVICES AUTHORITY,1000074199,530.20
Department of Health,Leicestershire Partnership NHS Trust,24/08/22,FP10'S,Lough Swithland Ward,NHS BUS SERVICES AUTHORITY,1000074199,1.85
Department of Health,Leicestershire Partnership NHS Trust,24/08/22,FP10'S,Mental Health Liaison Team,NHS BUS SERVICES AUTHORITY,1000074199,40.34
Department of Health,Leicestershire Partnership NHS Trust,24/08/22,FP10'S,PIER Team - Early Intervention Services,NHS BUS SERVICES AUTHORITY,1000074199,16729.13
Department of Health,Leicestershire Partnership NHS Trust,24/08/22,FP10'S,Snr Med Staff (Inc Med Reps),NHS BUS SERVICES AUTHORITY,1000074199,5933.66
Department of Health,Leicestershire Partnership NHS Trust,24/08/22,Leased / Hired Vehicles,Autism,LEASEPLAN,510388765,638.96
Department of Health,Leicestershire Partnership NHS Trust,24/08/22,Prep_ LT1y -Prepayments Lease Cars,Balance Sheet Collection,LEASEPLAN,510388765,26437.40
Department of Health,Leicestershire Partnership NHS Trust,24/08/22,Trade_Drs_LT1y -Lease Cars Invoicing Contrl Ac.,Balance Sheet Collection,LEASEPLAN,510388765,1485.24
Department of Health,Leicestershire Partnership NHS Trust,24/08/22,VAT_Drs _ LT1y -VAT Contracted Out Services Input Tax,Balance Sheet Collection,LEASEPLAN,510388765,921.23
Department of Health,Leicestershire Partnership NHS Trust,24/08/22,Leased / Hired Vehicles,COVID 19,LEASEPLAN,510388765,472.36
Department of Health,Leicestershire Partnership NHS Trust,24/08/22,Leased / Hired Vehicles,PIER Team - Early Intervention Services,LEASEPLAN,510388765,3306.40
Department of Health,Leicestershire Partnership NHS Trust,24/08/22,Landline Telephone Rental / Calls,"Beaumont Leys Health Centre (P94, LPT)",VIRGIN MEDIA BUSINESS,853083001/004/0822,320.45
Department of Health,Leicestershire Partnership NHS Trust,24/08/22,Landline Telephone Rental / Calls,"Bennion Centre (including Forest Grange Day Unit) (P8, LPT)",VIRGIN MEDIA BUSINESS,853083001/004/0822,7.74
Department of Health,Leicestershire Partnership NHS Trust,24/08/22,Landline Telephone Rental / Calls,"Bradgate Unit (including Glenvale day Unit) (P7, LPT)",VIRGIN MEDIA BUSINESS,853083001/004/0822,8394.12
Department of Health,Leicestershire Partnership NHS Trust,24/08/22,Landline Telephone Rental / Calls,Braunstone Health and Social Care Centre (Part) (PROPCO),VIRGIN MEDIA BUSINESS,853083001/004/0822,1124.39
Department of Health,Leicestershire Partnership NHS Trust,24/08/22,Landline Telephone Rental / Calls,Bridge Park Plaza - First Floor (LPT),VIRGIN MEDIA BUSINESS,853083001/004/0822,3721.82
Department of Health,Leicestershire Partnership NHS Trust,24/08/22,Landline Telephone Rental / Calls,"Coalville Community Hospital (P138, LPT)",VIRGIN MEDIA BUSINESS,853083001/004/0822,1432.96
Department of Health,Leicestershire Partnership NHS Trust,24/08/22,Landline Telephone Rental / Calls,"Coalville Health Centre (P121, LPT)",VIRGIN MEDIA BUSINESS,853083001/004/0822,151.84
Department of Health,Leicestershire Partnership NHS Trust,24/08/22,Landline Telephone Rental / Calls,County Hall,VIRGIN MEDIA BUSINESS,853083001/004/0822,1533.34
Department of Health,Leicestershire Partnership NHS Trust,24/08/22,Landline Telephone Rental / Calls,Estates & Facilities Central,VIRGIN MEDIA BUSINESS,853083001/004/0822,9.44
Department of Health,Leicestershire Partnership NHS Trust,24/08/22,Landline Telephone Rental / Calls,"Evington Centre (P6, LPT)",VIRGIN MEDIA BUSINESS,853083001/004/0822,1629.07
Department of Health,Leicestershire Partnership NHS Trust,24/08/22,Landline Telephone Rental / Calls,HIS,VIRGIN MEDIA BUSINESS,853083001/004/0822,2905.31
Department of Health,Leicestershire Partnership NHS Trust,24/08/22,Landline Telephone Rental / Calls,"Hawthorne Centre - Coalville (P14, LPT)",VIRGIN MEDIA BUSINESS,853083001/004/0822,540.13
Department of Health,Leicestershire Partnership NHS Trust,24/08/22,Landline Telephone Rental / Calls,"Hinckley and Bosworth Community Hospital (Sunnyside) (P133, LPT)",VIRGIN MEDIA BUSINESS,853083001/004/0822,947.33
Department of Health,Leicestershire Partnership NHS Trust,24/08/22,Landline Telephone Rental / Calls,Hood Park Leisure Centre Clinic,VIRGIN MEDIA BUSINESS,853083001/004/0822,23.22
Department of Health,Leicestershire Partnership NHS Trust,24/08/22,Landline Telephone Rental / Calls,"Hynca Lodge (P33, LPT)",VIRGIN MEDIA BUSINESS,853083001/004/0822,379.91
Department of Health,Leicestershire Partnership NHS Trust,24/08/22,Landline Telephone Rental / Calls,"Legion House, Ashby",VIRGIN MEDIA BUSINESS,853083001/004/0822,46.13
Department of Health,Leicestershire Partnership NHS Trust,24/08/22,Landline Telephone Rental / Calls,"Loughborough Hospital (P136, LPT)",VIRGIN MEDIA BUSINESS,853083001/004/0822,4209.66
Department of Health,Leicestershire Partnership NHS Trust,24/08/22,Landline Telephone Rental / Calls,Mawson House (LPT),VIRGIN MEDIA BUSINESS,853083001/004/0822,416.10
Department of Health,Leicestershire Partnership NHS Trust,24/08/22,Landline Telephone Rental / Calls,Merlyn Vaz Centre (CHP),VIRGIN MEDIA BUSINESS,853083001/004/0822,1313.45
Department of Health,Leicestershire Partnership NHS Trust,24/08/22,Landline Telephone Rental / Calls,"Mett Centre (P49, LPT)",VIRGIN MEDIA BUSINESS,853083001/004/0822,80.68
Department of Health,Leicestershire Partnership NHS Trust,24/08/22,Landline Telephone Rental / Calls,NSPCC Training Cente,VIRGIN MEDIA BUSINESS,853083001/004/0822,159.96
Department of Health,Leicestershire Partnership NHS Trust,24/08/22,Landline Telephone Rental / Calls,New Parks Health Centre (PROPCO),VIRGIN MEDIA BUSINESS,853083001/004/0822,1514.35
Department of Health,Leicestershire Partnership NHS Trust,24/08/22,Landline Telephone Rental / Calls,"OSL House (P54, LPT)",VIRGIN MEDIA BUSINESS,853083001/004/0822,976.25
Department of Health,Leicestershire Partnership NHS Trust,24/08/22,Landline Telephone Rental / Calls,"Orchard Resource Centre (P15, LPT)",VIRGIN MEDIA BUSINESS,853083001/004/0822,598.06
Department of Health,Leicestershire Partnership NHS Trust,24/08/22,Landline Telephone Rental / Calls,Pasley Road Health Centre (PROPCO),VIRGIN MEDIA BUSINESS,853083001/004/0822,139.39
Department of Health,Leicestershire Partnership NHS Trust,24/08/22,Landline Telephone Rental / Calls,"Prince Philip House (P96, LPT)",VIRGIN MEDIA BUSINESS,853083001/004/0822,1497.61
Department of Health,Leicestershire Partnership NHS Trust,24/08/22,Landline Telephone Rental / Calls,Rushey Mead Health Centre (PROPCO),VIRGIN MEDIA BUSINESS,853083001/004/0822,68.18
Department of Health,Leicestershire Partnership NHS Trust,24/08/22,Landline Telephone Rental / Calls,"Shepshed Health Centre (P123, LPT)",VIRGIN MEDIA BUSINESS,853083001/004/0822,8.58
Department of Health,Leicestershire Partnership NHS Trust,24/08/22,Landline Telephone Rental / Calls,"Springfield Road Health Centre (P92, LPT)",VIRGIN MEDIA BUSINESS,853083001/004/0822,328.43
Department of Health,Leicestershire Partnership NHS Trust,24/08/22,Landline Telephone Rental / Calls,"St Peters Health Center (Part 1st and 2nd floors) (P66, LPT)",VIRGIN MEDIA BUSINESS,853083001/004/0822,1617.40
Department of Health,Leicestershire Partnership NHS Trust,24/08/22,Landline Telephone Rental / Calls,"Swithland House - London Road 352 (P44, LPT)",VIRGIN MEDIA BUSINESS,853083001/004/0822,282.52
Department of Health,Leicestershire Partnership NHS Trust,24/08/22,Landline Telephone Rental / Calls,"The Cedars (P19, LPT)",VIRGIN MEDIA BUSINESS,853083001/004/0822,769.42
Department of Health,Leicestershire Partnership NHS Trust,24/08/22,Landline Telephone Rental / Calls,"The Willows - Cordelia Close (P22, LPT)",VIRGIN MEDIA BUSINESS,853083001/004/0822,579.83
Department of Health,Leicestershire Partnership NHS Trust,24/08/22,Landline Telephone Rental / Calls,"Valentine Centre (P3, LPT)",VIRGIN MEDIA BUSINESS,853083001/004/0822,1745.65
Department of Health,Leicestershire Partnership NHS Trust,24/08/22,Landline Telephone Rental / Calls,Warren Park Way 25 (PROPCO),VIRGIN MEDIA BUSINESS,853083001/004/0822,785.87
Department of Health,Leicestershire Partnership NHS Trust,24/08/22,Landline Telephone Rental / Calls,"Westcotes Group -Westcotes House (P78, LPT)",VIRGIN MEDIA BUSINESS,853083001/004/0822,1320.55
Department of Health,Leicestershire Partnership NHS Trust,24/08/22,Landline Telephone Rental / Calls,"Winstanley Drive Health Centre (P8, LPT)",VIRGIN MEDIA BUSINESS,853083001/004/0822,428.29
Department of Health,Leicestershire Partnership NHS Trust,25/08/22,Cytogenetic Testing,Community Paediatrics,UHL NHS TRUST (RWE),L0262746,56487.18
Department of Health,Leicestershire Partnership NHS Trust,26/08/22,External Consultancy Fees,FM Transformation,TURNER & TOWNSEND COST MAN,PRIV00001611,25643.53
Department of Health,Leicestershire Partnership NHS Trust,30/08/22,Rent,"St Peters Health Center (Part 1st and 2nd floors) (P66, LPT)",LEICESTER LIFT CO,LEP1-SI1063,30082.84
Department of Health,Leicestershire Partnership NHS Trust,30/08/22,Services / Recharges from NHS Trusts,Inter Unit I & E Distribution,UHL NHS TRUST (RWE),L0262791,35445.76
Department of Health,Leicestershire Partnership NHS Trust,30/08/22,Crs_NHS_LT1y -Resus Inventory Supplied.,Balance Sheet Collection,SUPPLY CHAIN CO LTD,1123112451,35028.34
Department of Health,Leicestershire Partnership NHS Trust,30/08/22,Rent,"OSL House (P54, LPT)",CABOT TRUSTEES LTD,070,41700.00
